fUSD/lending_fUSD_20260611
["ID","MTS","AMOUNT","RATE_DAILY","PERIOD"]
[424779120,1781157041000,-500.0,0.00013698,2]
[424779089,1781157041000,-10000.0,0.000136,2]
[424779115,1781157041000,-500.0,0.00013698,2]
[424779090,1781157041000,-150.0,0.00013603,2]
[424779150,1781157041000,-500.0,0.00013698,2]
[424779097,1781157041000,-254.58489995,0.00013639,2]
[424779095,1781157041000,-150.0,0.0001363,2]
[424779096,1781157041000,-150.0,0.00013638,2]
[424779092,1781157041000,-150.0,0.0001361,2]
[424779098,1781157041000,-150.0,0.00013641,2]
[424779093,1781157041000,-254.58489995,0.00013624,2]
[424779094,1781157041000,-150.0,0.00013628,2]
[424779099,1781157041000,-150.0,0.00013641,2]
[424779100,1781157041000,-254.58489995,0.00013654,2]
[424779102,1781157041000,-150.0,0.00013666,2]
[424779101,1781157041000,-189.518955,0.00013655,2]
[424779103,1781157041000,-254.58489995,0.00013669,2]
[424779108,1781157041000,-254.58489995,0.00013684,2]
[424779106,1781157041000,-1484.85,0.00013676,2]
[424779109,1781157041000,-1245.55,0.00013693,2]
[424779107,1781157041000,-150.0,0.0001368,2]
[424779104,1781157041000,-150.0,0.00013671,2]
[424779110,1781157041000,-220.04454981,0.00013698,2]
[424779105,1781157041000,-150.0,0.00013675,2]
[424779112,1781157041000,-500.0,0.00013698,2]
[424779111,1781157041000,-574.57860626,0.00013698,2]
[424779114,1781157041000,-503.31933434,0.00013698,2]
[424779113,1781157041000,-500.0,0.00013698,2]
[424779116,1781157041000,-500.0,0.00013698,2]
[424779142,1781157041000,-500.0,0.00013698,2]
[424779091,1781157041000,-254.58489995,0.00013609,2]
[424779145,1781157041000,-500.0,0.00013698,2]
[424779176,1781157041000,-1120.43,0.00013698,2]
[424779173,1781157041000,-1120.43,0.00013698,2]
[424779175,1781157041000,-1120.43,0.00013698,2]
[424779190,1781157041000,-2144.95,0.00013698,2]
[424779180,1781157041000,-1120.43,0.00013698,2]
[424779184,1781157041000,-1120.43,0.00013698,2]
[424779183,1781157041000,-1120.43,0.00013698,2]
[424779179,1781157041000,-1120.43,0.00013698,2]
[424779181,1781157041000,-1120.43,0.00013698,2]
[424779182,1781157041000,-1120.43,0.00013698,2]
[424779185,1781157041000,-1120.43,0.00013698,2]
[424779169,1781157041000,-500.0,0.00013698,2]
[424779188,1781157041000,-2144.95,0.00013698,2]
[424779186,1781157041000,-1120.43,0.00013698,2]
[424779189,1781157041000,-2144.95,0.00013698,2]
[424779192,1781157041000,-2144.95,0.00013698,2]
[424779194,1781157041000,-2144.95,0.00013698,2]
[424779193,1781157041000,-2144.95,0.00013698,2]
[424779200,1781157041000,-500.0,0.00013698,2]
[424779191,1781157041000,-2144.95,0.00013698,2]
[424779198,1781157041000,-500.0,0.00013698,2]
[424779196,1781157041000,-500.0,0.00013698,2]
[424779195,1781157041000,-2144.95,0.00013698,2]
[424779199,1781157041000,-500.0,0.00013698,2]
[424779187,1781157041000,-1120.43,0.00013698,2]
[424779177,1781157041000,-1120.43,0.00013698,2]
[424779197,1781157041000,-500.0,0.00013698,2]
[424779178,1781157041000,-1120.43,0.00013698,2]
[424779172,1781157041000,-504.25668169,0.00013698,2]
[424779148,1781157041000,-415.12475003,0.00013698,2]
[424779152,1781157041000,-500.0,0.00013698,2]
[424779151,1781157041000,-500.0,0.00013698,2]
[424779147,1781157041000,-500.0,0.00013698,2]
[424779149,1781157041000,-502.88764057,0.00013698,2]
[424779146,1781157041000,-500.0,0.00013698,2]
[424779153,1781157041000,-500.0,0.00013698,2]
[424779154,1781157041000,-500.0,0.00013698,2]
[424779155,1781157041000,-500.0,0.00013698,2]
[424779165,1781157041000,-500.0,0.00013698,2]
[424779166,1781157041000,-500.0,0.00013698,2]
[424779156,1781157041000,-500.0,0.00013698,2]
[424779144,1781157041000,-500.0,0.00013698,2]
[424779163,1781157041000,-500.0,0.00013698,2]
[424779159,1781157041000,-500.0,0.00013698,2]
[424779170,1781157041000,-500.0,0.00013698,2]
[424779171,1781157041000,-500.0,0.00013698,2]
[424779167,1781157041000,-500.0,0.00013698,2]
[424779162,1781157041000,-500.0,0.00013698,2]
[424779174,1781157041000,-1120.43,0.00013698,2]
[424779160,1781157041000,-500.0,0.00013698,2]
[424779161,1781157041000,-500.0,0.00013698,2]
[424779158,1781157041000,-500.0,0.00013698,2]
[424779157,1781157041000,-500.0,0.00013698,2]
[424779164,1781157041000,-500.0,0.00013698,2]
[424779168,1781157041000,-500.0,0.00013698,2]
[424779231,1781157042000,-639.53,0.00013698,2]
[424779237,1781157042000,-500.0,0.00013698,2]
[424779233,1781157042000,-639.53,0.00013698,2]
[424779228,1781157042000,-639.53,0.00013698,2]
[424779234,1781157042000,-500.0,0.00013698,2]
[424779226,1781157042000,-639.53,0.00013698,2]
[424779232,1781157042000,-639.53,0.00013698,2]
[424779236,1781157042000,-500.0,0.00013698,2]
[424779238,1781157042000,-500.0,0.00013698,2]
[424779235,1781157042000,-500.0,0.00013698,2]
[424779243,1781157042000,-500.0,0.00013698,2]
[424779241,1781157042000,-500.0,0.00013698,2]
[424779242,1781157042000,-500.0,0.00013698,2]
[424779244,1781157042000,-500.0,0.00013698,2]
[424779240,1781157042000,-500.0,0.00013698,2]
[424779224,1781157042000,-500.0,0.00013698,2]
[424779245,1781157042000,-500.0,0.00013698,2]
[424779246,1781157042000,-500.0,0.00013698,2]
[424779249,1781157042000,-500.0,0.00013698,2]
[424779247,1781157042000,-500.0,0.00013698,2]
[424779251,1781157042000,-985.2,0.00013698,2]
[424779252,1781157042000,-985.2,0.00013698,2]
[424779254,1781157042000,-985.2,0.00013698,2]
[424779239,1781157042000,-500.0,0.00013698,2]
[424779225,1781157042000,-500.0,0.00013698,9]
[424779220,1781157042000,-500.0,0.00013698,2]
[424779230,1781157042000,-639.53,0.00013698,2]
[424779257,1781157042000,-985.2,0.00013698,2]
[424779202,1781157042000,-500.0,0.00013698,2]
[424779201,1781157042000,-500.0,0.00013698,2]
[424779211,1781157042000,-777.03,0.00013698,2]
[424779205,1781157042000,-500.0,0.00013698,2]
[424779204,1781157042000,-500.0,0.00013698,2]
[424779207,1781157042000,-500.0,0.00013698,2]
[424779206,1781157042000,-500.0,0.00013698,2]
[424779203,1781157042000,-500.0,0.00013698,2]
[424779209,1781157042000,-492.8427843,0.00013698,2]
[424779208,1781157042000,-500.0,0.00013698,2]
[424779210,1781157042000,-777.03,0.00013698,2]
[424779212,1781157042000,-777.03,0.00013698,2]
[424779214,1781157042000,-777.03,0.00013698,2]
[424779213,1781157042000,-777.03,0.00013698,2]
[424779223,1781157042000,-500.0,0.00013698,2]
[424779216,1781157042000,-777.03,0.00013698,2]
[424779218,1781157042000,-500.0,0.00013698,2]
[424779217,1781157042000,-777.03,0.00013698,2]
[424779215,1781157042000,-777.03,0.00013698,2]
[424779221,1781157042000,-500.0,0.00013698,2]
[424779219,1781157042000,-500.0,0.00013698,2]
[424779227,1781157042000,-639.53,0.00013698,2]
[424779229,1781157042000,-639.53,0.00013698,2]
[424779222,1781157042000,-500.0,0.00013698,2]
[424779250,1781157042000,-985.2,0.00013698,2]
[424779256,1781157042000,-985.2,0.00013698,2]
[424779288,1781157042000,-500.0,0.00013698,2]
[424779283,1781157042000,-500.0,0.00013698,2]
[424779287,1781157042000,-500.0,0.00013698,2]
[424779286,1781157042000,-500.0,0.00013698,2]
[424779284,1781157042000,-500.0,0.00013698,2]
[424779285,1781157042000,-500.0,0.00013698,2]
[424779289,1781157042000,-500.0,0.00013698,2]
[424779290,1781157042000,-500.0,0.00013698,2]
[424779291,1781157042000,-500.0,0.00013698,2]
[424779294,1781157042000,-500.0,0.00013698,2]
[424779296,1781157042000,-500.0,0.00013698,2]
[424779293,1781157042000,-500.0,0.00013698,2]
[424779297,1781157042000,-500.0,0.00013698,2]
[424779298,1781157042000,-500.0,0.00013698,2]
[424779295,1781157042000,-500.0,0.00013698,2]
[424779300,1781157042000,-500.0,0.00013698,2]
[424779302,1781157042000,-500.0,0.00013698,2]
[424779303,1781157042000,-500.0,0.00013698,2]
[424779305,1781157042000,-500.0,0.00013698,2]
[424779304,1781157042000,-500.0,0.00013698,2]
[424779299,1781157042000,-500.0,0.00013698,2]
[424779301,1781157042000,-500.0,0.00013698,2]
[424779248,1781157042000,-500.0,0.00013698,2]
[424779281,1781157042000,-500.0,0.00013698,2]
[424779280,1781157042000,-500.0,0.00013698,2]
[424779292,1781157042000,-500.0,0.00013698,2]
[424779278,1781157042000,-500.0,0.00013698,2]
[424779255,1781157042000,-985.2,0.00013698,2]
[424779279,1781157042000,-500.0,0.00013698,2]
[424779253,1781157042000,-985.2,0.00013698,2]
[424779258,1781157042000,-500.0,0.00013698,2]
[424779259,1781157042000,-500.0,0.00013698,2]
[424779260,1781157042000,-500.0,0.00013698,2]
[424779262,1781157042000,-500.0,0.00013698,2]
[424779263,1781157042000,-500.0,0.00013698,2]
[424779266,1781157042000,-500.0,0.00013698,2]
[424779265,1781157042000,-500.0,0.00013698,2]
[424779264,1781157042000,-500.0,0.00013698,2]
[424779267,1781157042000,-500.0,0.00013698,2]
[424779261,1781157042000,-500.0,0.00013698,2]
[424779277,1781157042000,-500.0,0.00013698,2]
[424779268,1781157042000,-500.0,0.00013698,2]
[424779270,1781157042000,-500.0,0.00013698,2]
[424779271,1781157042000,-504.05769263,0.00013698,2]
[424779272,1781157042000,-500.0,0.00013698,2]
[424779274,1781157042000,-500.0,0.00013698,2]
[424779275,1781157042000,-527.02640831,0.00013698,2]
[424779276,1781157042000,-473.88481406,0.00013698,2]
[424779273,1781157042000,-500.0,0.00013698,2]
[424779269,1781157042000,-500.0,0.00013698,2]
[424779282,1781157042000,-500.0,0.00013698,2]
[424779342,1781157043000,-254.58489995,0.00013715,2]
[424779353,1781157043000,-150.0,0.00013769,2]
[424779354,1781157043000,-150.0,0.00013773,2]
[424779343,1781157043000,-150.0,0.00013718,2]
[424779338,1781157043000,-22261.86,0.00013699,2]
[424779335,1781157043000,-154.27,0.00013699,2]
[424779336,1781157043000,-151.0,0.00013699,2]
[424779339,1781157043000,-254.58489995,0.000137,2]
[424779340,1781157043000,-150.0,0.00013702,2]
[424779344,1781157043000,-150.0,0.00013722,2]
[424779341,1781157043000,-150.0,0.00013702,2]
[424779345,1781157043000,-254.58489995,0.0001373,2]
[424779362,1781157043000,-150.0,0.00013815,2]
[424779347,1781157043000,-150.0,0.00013737,2]
[424779351,1781157043000,-254.58489995,0.0001376,2]
[424779352,1781157043000,-150.0,0.00013763,2]
[424779349,1781157043000,-254.58489995,0.00013745,2]
[424779350,1781157043000,-150.0,0.00013757,2]
[424779357,1781157043000,-254.58489995,0.0001379,2]
[424779355,1781157043000,-254.58489995,0.00013775,2]
[424779358,1781157043000,-150.0,0.00013794,2]
[424779356,1781157043000,-150.0,0.00013787,2]
[424779361,1781157043000,-150.0,0.00013809,2]
[424779337,1781157043000,-771.36,0.00013699,2]
[424779346,1781157043000,-150.0,0.00013732,2]
[424779333,1781157043000,-185.12,0.00013699,2]
[424779306,1781157043000,-500.0,0.00013698,2]
[424779334,1781157043000,-151.0,0.00013699,2]
[424779360,1781157043000,-254.58489995,0.00013806,2]
[424779308,1781157043000,-500.0,0.00013698,2]
[424779307,1781157043000,-500.0,0.00013698,2]
[424779309,1781157043000,-500.0,0.00013698,2]
[424779311,1781157043000,-500.0,0.00013698,2]
[424779316,1781157043000,-500.0,0.00013698,2]
[424779310,1781157043000,-500.0,0.00013698,2]
[424779313,1781157043000,-500.0,0.00013698,2]
[424779315,1781157043000,-171.51496798,0.00013698,2]
[424779314,1781157043000,-500.0,0.00013698,2]
[424779318,1781157043000,-500.0,0.00013698,2]
[424779319,1781157043000,-500.0,0.00013698,2]
[424779312,1781157043000,-500.0,0.00013698,2]
[424779320,1781157043000,-500.0,0.00013698,2]
[424779321,1781157043000,-500.0,0.00013698,2]
[424779323,1781157043000,-500.0,0.00013698,2]
[424779325,1781157043000,-500.0,0.00013698,2]
[424779322,1781157043000,-500.0,0.00013698,2]
[424779324,1781157043000,-500.0,0.00013698,2]
[424779330,1781157043000,-200.0,0.00013699,2]
[424779329,1781157043000,-500.0,0.00013698,2]
[424779326,1781157043000,-500.0,0.00013698,2]
[424779327,1781157043000,-500.0,0.00013698,2]
[424779328,1781157043000,-500.0,0.00013698,2]
[424779331,1781157043000,-2500.0,0.00013699,2]
[424779332,1781157043000,-222.15,0.00013699,2]
[424779366,1781157043000,-254.58489995,0.00013836,2]
[424779348,1781157043000,-150.0,0.00013737,2]
[424779359,1781157043000,-150.0,0.00013795,2]
[424779403,1781157043000,-503.42046644,0.00013989,2]
[424779395,1781157043000,-84119.56863544,0.00013972,2]
[424779396,1781157043000,-150.0,0.00013977,2]
[424779393,1781157043000,-254.58489995,0.00013972,2]
[424779394,1781157043000,-55361.3909486,0.00013972,2]
[424779400,1781157043000,-150.0,0.00013987,2]
[424779397,1781157043000,-150.0,0.00013987,2]
[424779399,1781157043000,-254.58489995,0.00013987,2]
[424779401,1781157043000,-500.0,0.00013989,2]
[424779398,1781157043000,-150.0,0.00013987,2]
[424779404,1781157043000,-500.0,0.00013989,2]
[424779407,1781157043000,-254.58489995,0.00014002,2]
[424779405,1781157043000,-26574.84911613,0.0001399,2]
[424779409,1781157043000,-150.0,0.00014008,2]
[424779411,1781157043000,-150.0,0.00014023,2]
[424779408,1781157043000,-150.0,0.00014003,2]
[424779410,1781157043000,-254.58489995,0.00014017,2]
[424779406,1781157043000,-250.0,0.00014,2]
[424779413,1781157043000,-254.58489995,0.00014033,2]
[424779412,1781157043000,-150.0,0.00014026,2]
[424779416,1781157043000,-165.43,0.00014035,2]
[424779427,1781157043000,-254.58489995,0.00014063,2]
[424779418,1781157043000,-150.0,0.00014038,2]
[424779422,1781157043000,-150.0,0.0001405,2]
[424779363,1781157043000,-254.58489995,0.00013821,2]
[424779392,1781157043000,-254.58489995,0.00013957,2]
[424779402,1781157043000,-500.0,0.00013989,2]
[424779424,1781157043000,-150.0,0.00014059,2]
[424779386,1781157043000,-254.58489995,0.00013942,2]
[424779389,1781157043000,-150.0,0.00013952,2]
[424779365,1781157043000,-150.0,0.00013834,2]
[424779367,1781157043000,-150.0,0.00013844,2]
[424779368,1781157043000,-254.58489995,0.00013851,2]
[424779378,1781157043000,-19100.0,0.000139,5]
[424779370,1781157043000,-150.0,0.00013862,2]
[424779369,1781157043000,-150.0,0.00013855,2]
[424779420,1781157043000,-254.58489995,0.00014048,2]
[424779371,1781157043000,-150.0,0.00013862,2]
[424779372,1781157043000,-254.58489995,0.00013866,2]
[424779373,1781157043000,-150.0,0.00013872,2]
[424779374,1781157043000,-150.0,0.0001388,2]
[424779364,1781157043000,-150.0,0.00013824,2]
[424779377,1781157043000,-254.58489995,0.00013896,2]
[424779375,1781157043000,-254.58489995,0.00013881,2]
[424779387,1781157043000,-150.0,0.00013946,2]
[424779388,1781157043000,-150.0,0.00013949,2]
[424779385,1781157043000,-150.0,0.00013937,2]
[424779390,1781157043000,-150.0,0.00013956,2]
[424779384,1781157043000,-254.58489995,0.00013927,2]
[424779383,1781157043000,-150.0,0.00013916,2]
[424779379,1781157043000,-150.0,0.00013909,2]
[424779381,1781157043000,-254.58489995,0.00013912,2]
[424779382,1781157043000,-150.0,0.00013916,2]
[424779376,1781157043000,-150.0,0.00013885,2]
[424779380,1781157043000,-150.0,0.0001391,2]
[424779465,1781157044000,-1000.0,0.0001423,2]
[424779480,1781157044000,-254.58489995,0.0001429,2]
[424779469,1781157044000,-150.0,0.00014237,2]
[424779467,1781157044000,-150.0,0.00014237,2]
[424779470,1781157044000,-150.0,0.00014237,2]
[424779463,1781157044000,-150.0,0.00014222,2]
[424779466,1781157044000,-150.0,0.00014237,2]
[424779468,1781157044000,-150.0,0.00014237,2]
[424779471,1781157044000,-150.0,0.00014237,2]
[424779464,1781157044000,-254.58489995,0.00014229,2]
[424779481,1781157044000,-150.0,0.00014295,2]
[424779477,1781157044000,-254.58489995,0.00014275,2]
[424779482,1781157044000,-4643.56377,0.00014298,2]
[424779472,1781157044000,-254.58489995,0.00014245,2]
[424779473,1781157044000,-150.0,0.00014252,2]
[424779474,1781157044000,-150.0,0.00014256,2]
[424779475,1781157044000,-254.58489995,0.0001426,2]
[424779476,1781157044000,-150.0,0.00014273,2]
[424779478,1781157044000,-150.0,0.00014283,2]
[424779483,1781157044000,-1120.43,0.00014299,2]
[424779491,1781157044000,-171.300456,0.00014335,2]
[424779484,1781157044000,-996.37298932,0.000143,2]
[424779462,1781157044000,-150.0,0.00014218,2]
[424779487,1781157044000,-150.0,0.00014313,2]
[424779479,1781157044000,-150.0,0.00014284,2]
[424779461,1781157044000,-254.58489995,0.00014214,2]
[424779447,1781157044000,-254.58489995,0.00014154,2]
[424779453,1781157044000,-254.58489995,0.00014169,2]
[424779490,1781157044000,-150.0,0.00014333,2]
[424779431,1781157044000,-150.0,0.00014069,2]
[424779433,1781157044000,-254.58489995,0.00014078,2]
[424779429,1781157044000,-150.0,0.00014064,2]
[424779434,1781157044000,-150.0,0.00014087,2]
[424779435,1781157044000,-254.58489995,0.00014093,2]
[424779436,1781157044000,-150.0,0.00014094,2]
[424779437,1781157044000,-150.0,0.00014096,2]
[424779439,1781157044000,-150.0,0.00014102,2]
[424779442,1781157044000,-150.0,0.0001413,2]
[424779445,1781157044000,-150.0,0.00014141,2]
[424779456,1781157044000,-150.0,0.0001419,2]
[424779446,1781157044000,-150.0,0.00014143,2]
[424779440,1781157044000,-254.58489995,0.00014108,2]
[424779444,1781157044000,-254.58489995,0.00014139,2]
[424779441,1781157044000,-254.58489995,0.00014123,2]
[424779449,1781157044000,-150.0,0.00014161,2]
[424779459,1781157044000,-254.58489995,0.00014199,2]
[424779460,1781157044000,-150.0,0.00014201,2]
[424779452,1781157044000,-150.0,0.00014166,2]
[424779455,1781157044000,-254.58489995,0.00014184,2]
[424779457,1781157044000,-150.0,0.00014191,2]
[424779458,1781157044000,-736.0,0.00014195,2]
[424779454,1781157044000,-150.0,0.00014179,2]
[424779438,1781157044000,-150.0,0.00014099,2]
[424779485,1781157044000,-254.58489995,0.00014305,2]
[424779443,1781157044000,-150.0,0.0001413,2]
[424779489,1781157044000,-150.0,0.00014331,2]
[424779522,1781157044000,-254.58489995,0.00014472,2]
[424779518,1781157044000,-150.0,0.00014451,2]
[424779520,1781157044000,-150.0,0.00014466,2]
[424779519,1781157044000,-254.58489995,0.00014456,2]
[424779523,1781157044000,-150.0,0.00014487,2]
[424779521,1781157044000,-150.0,0.00014471,2]
[424779526,1781157044000,-150.0,0.00014487,2]
[424779525,1781157044000,-254.58489995,0.00014487,2]
[424779528,1781157044000,-1677.01,0.00014499,2]
[424779529,1781157044000,-254.58489995,0.00014502,2]
[424779534,1781157044000,-150.0,0.00014528,2]
[424779524,1781157044000,-150.0,0.00014487,2]
[424779537,1781157044000,-254.58489995,0.00014547,2]
[424779542,1781157044000,-150.0,0.00014565,2]
[424779531,1781157044000,-150.0,0.00014518,2]
[424779532,1781157044000,-150.0,0.00014522,2]
[424779535,1781157044000,-254.58489995,0.00014532,2]
[424779533,1781157044000,-150.0,0.00014525,2]
[424779538,1781157044000,-150.0,0.00014558,2]
[424779536,1781157044000,-150.0,0.00014537,2]
[424779539,1781157044000,-150.0,0.00014558,2]
[424779540,1781157044000,-254.58489995,0.00014562,2]
[424779543,1781157044000,-254.58489995,0.00014578,2]
[424779492,1781157044000,-254.58489995,0.00014335,2]
[424779530,1781157044000,-254.58489995,0.00014517,2]
[424779527,1781157044000,-150.0,0.00014497,2]
[424779541,1781157044000,-150.0,0.00014564,2]
[424779517,1781157044000,-1500.0,0.0001445,2]
[424779516,1781157044000,-150.0,0.00014448,2]
[424779486,1781157044000,-150.0,0.00014308,2]
[424779493,1781157044000,-150.0,0.00014344,2]
[424779498,1781157044000,-150.0,0.00014375,2]
[424779495,1781157044000,-254.58489995,0.00014351,2]
[424779494,1781157044000,-150.0,0.00014344,2]
[424779502,1781157044000,-150.0,0.00014387,2]
[424779496,1781157044000,-254.58489995,0.00014366,2]
[424779503,1781157044000,-254.58489995,0.00014396,2]
[424779501,1781157044000,-254.58489995,0.00014381,2]
[424779497,1781157044000,-150.0,0.00014371,2]
[424779500,1781157044000,-150.0,0.0001438,2]
[424779488,1781157044000,-254.58489995,0.0001432,2]
[424779499,1781157044000,-150.0,0.00014377,2]
[424779504,1781157044000,-466.05,0.00014397,2]
[424779506,1781157044000,-150.0,0.0001441,2]
[424779514,1781157044000,-84119.56863544,0.00014436,2]
[424779515,1781157044000,-254.58489995,0.00014441,2]
[424779513,1781157044000,-55361.3909486,0.00014436,2]
[424779511,1781157044000,-500.0,0.00014433,2]
[424779508,1781157044000,-150.0,0.00014415,2]
[424779510,1781157044000,-254.58489995,0.00014426,2]
[424779509,1781157044000,-150.0,0.00014424,2]
[424779507,1781157044000,-254.58489995,0.00014411,2]
[424779505,1781157044000,-150.0,0.00014405,2]
[424779512,1781157044000,-150.0,0.00014436,2]
[424779572,1781157045000,-150.0,0.00014687,2]
[424779574,1781157045000,-150.0,0.00014701,2]
[424779573,1781157045000,-254.58489995,0.00014699,2]
[424779579,1781157045000,-254.58489995,0.00014729,2]
[424779580,1781157045000,-199.5,0.00014734,2]
[424779578,1781157045000,-150.0,0.00014717,2]
[424779577,1781157045000,-254.58489995,0.00014714,2]
[424779575,1781157045000,-150.0,0.00014705,2]
[424779571,1781157045000,-254.58489995,0.00014684,2]
[424779576,1781157045000,-150.0,0.00014711,2]
[424779589,1781157045000,-150.0,0.00014772,2]
[424779582,1781157045000,-150.0,0.00014737,2]
[424779585,1781157045000,-150.0,0.00014752,2]
[424779590,1781157045000,-254.58489995,0.00014774,2]
[424779584,1781157045000,-254.58489995,0.00014744,2]
[424779583,1781157045000,-150.0,0.00014742,2]
[424779586,1781157045000,-150.0,0.00014756,2]
[424779588,1781157045000,-150.0,0.00014772,2]
[424779587,1781157045000,-254.58489995,0.00014759,2]
[424779591,1781157045000,-254.58489995,0.0001479,2]
[424779570,1781157045000,-150.0,0.0001468,2]
[424779594,1781157045000,-500.0,0.00014799,9]
[424779581,1781157045000,-150.0,0.00014737,2]
[424779568,1781157045000,-200.0,0.00014672,2]
[424779553,1781157045000,-150.0,0.00014602,2]
[424779566,1781157045000,-150.0,0.00014665,2]
[424779592,1781157045000,-150.0,0.00014794,2]
[424779548,1781157045000,-150.0,0.000146,2]
[424779546,1781157045000,-150.0,0.00014594,2]
[424779544,1781157045000,-150.0,0.00014589,2]
[424779545,1781157045000,-254.58489995,0.00014593,2]
[424779547,1781157045000,-150.0,0.000146,2]
[424779549,1781157045000,-150.0,0.000146,2]
[424779550,1781157045000,-150.0,0.000146,2]
[424779551,1781157045000,-278.60891467,0.000146,2]
[424779556,1781157045000,-150.0,0.00014612,2]
[424779558,1781157045000,-254.58489995,0.00014623,2]
[424779557,1781157045000,-150.0,0.00014619,2]
[424779552,1781157045000,-2000.0,0.000146,2]
[424779555,1781157045000,-150.0,0.00014612,2]
[424779554,1781157045000,-254.58489995,0.00014608,2]
[424779560,1781157045000,-254.58489995,0.00014638,2]
[424779569,1781157045000,-150.0,0.00014679,2]
[424779559,1781157045000,-150.0,0.00014629,2]
[424779564,1781157045000,-254.58489995,0.00014653,2]
[424779561,1781157045000,-150.0,0.0001464,2]
[424779563,1781157045000,-150.0,0.0001465,2]
[424779567,1781157045000,-254.58489995,0.00014668,2]
[424779562,1781157045000,-165.43,0.00014645,2]
[424779565,1781157045000,-150.0,0.00014658,2]
[424779593,1781157045000,-150.0,0.00014799,2]
[424779604,1781157045000,-151.0,0.000148,2]
[424779595,1781157045000,-500.0,0.00014799,2]
[424779627,1781157045000,-500.0,0.00014882,2]
[424779623,1781157045000,-500.0,0.0001488,2]
[424779626,1781157045000,-500.0,0.00014882,2]
[424779628,1781157045000,-5800.0,0.00014883,2]
[424779629,1781157045000,-250.92607846,0.0001489,2]
[424779630,1781157045000,-25000.0,0.00014891,3]
[424779631,1781157045000,-5800.0,0.00014891,2]
[424779632,1781157045000,-150.0,0.00014893,2]
[424779637,1781157045000,-500.0,0.00014899,12]
[424779635,1781157045000,-500.0,0.00014899,10]
[424779633,1781157045000,-150.0,0.00014895,2]
[424779640,1781157045000,-500.0,0.00014899,2]
[424779634,1781157045000,-254.58489995,0.00014895,2]
[424779636,1781157045000,-500.0,0.00014899,11]
[424779638,1781157045000,-500.0,0.00014899,13]
[424779641,1781157045000,-500.0,0.00014899,2]
[424779639,1781157045000,-500.0,0.00014899,2]
[424779596,1781157045000,-2144.95,0.00014799,2]
[424779645,1781157045000,-2144.95,0.00014899,2]
[424779643,1781157045000,-500.0,0.00014899,2]
[424779644,1781157045000,-1120.43,0.00014899,2]
[424779647,1781157045000,-500.0,0.00014899,2]
[424779646,1781157045000,-777.03,0.00014899,2]
[424779625,1781157045000,-500.0,0.00014882,2]
[424779624,1781157045000,-254.58489995,0.0001488,2]
[424779642,1781157045000,-500.0,0.00014899,2]
[424779619,1781157045000,-254.58489995,0.00014865,2]
[424779622,1781157045000,-150.0,0.00014879,2]
[424779600,1781157045000,-500.0,0.00014799,2]
[424779598,1781157045000,-500.0,0.00014799,10]
[424779599,1781157045000,-639.53,0.00014799,2]
[424779601,1781157045000,-500.0,0.00014799,2]
[424779602,1781157045000,-985.2,0.00014799,2]